Cogmind - Beta 16.1 *** ADVENTURER MODE // 2026.02.19 @ 00:33:08 Player: sydl1 Result: Smashed by cave-in Performance ------------- Evolutions (1) 500 Regions Visited (3) 600 Robots Destroyed (49) 245 Value Destroyed (991) 991 Prototype IDs (4) 80 Alien Tech Used (0) 0 Bonus (0) 0 TOTAL SCORE: 2416 Bonus ------- None Cogmind --------- Core Integrity 0/400 Matter 79/300 Energy 100/100 System Corruption 3% Temperature Cool (0) Movement Core (50) Location -9/Materials Parts ------- > --- POWER (1) -------- (None) > --- PROPULSION (2) --- (None) > --- UTILITY (4) ------ Machine Analyzer > --- WEAPON (2) ------- Mini Grenade Launcher > --- INVENTORY (5) ---- Light Assault Rifle Peak State ------------ > --- POWER ------------ (None) > --- PROPULSION ------- Hover Unit Hover Unit > --- UTILITY ---------- Machine Analyzer Core Shielding Hardened Light Armor Plating Improved Light Armor Plating > --- WEAPON ----------- Light Assault Rifle Mini Grenade Launcher > --- INVENTORY -------- Wheel Small Storage Unit Large Storage Unit Improved Terrain Scanner [Rating: 14] Favorites ----------- Power Light Ion Engine Engine Light Ion Engine Propulsion Wheel Leg Aluminum Leg Wheel Wheel Hover Unit Hover Unit Flight Unit Flight Unit Utility Core Shielding Device Sensor Array Storage Large Storage Unit Processor Machine Analyzer Protection Core Shielding Weapon Mini Grenade Launcher Energy Gun Medium Laser Ballistic Gun Light Assault Rifle Launcher Mini Grenade Launcher Special Weapon Plasma Flamer Build | -11 -10 -10 -9 ------- Run | Yrd Mat Min Mat Slots Evolved 2 | . . . 2 Power . | . . . . Propulsion . | . . . . Utility 2 | . . . 2 Weapon . | . . . . Parts Attached 37 | 8 11 3 15 Power 2 | 1 1 . . Engine 2 | 1 1 . . Core . | . . . . Reactor . | . . . . Propulsion 12 | 3 3 . 6 Treads . | . . . . Leg 3 | 1 1 . 1 Wheel 4 | 2 . . 2 Hover 3 | . . . 3 Flight 2 | . 2 . . Utility 12 | 1 5 1 5 Device 4 | 1 3 . . Storage 3 | . 2 1 . Processor 1 | . . . 1 Hackware . | . . . . Protection 4 | . . . 4 Artifact . | . . . . Weapon 11 | 3 2 2 4 Energy Gun 2 | 1 1 . . Energy Cannon . | . . . . Ballistic Gun 3 | 2 . . 1 Ballistic Cannon . | . . . . Launcher 5 | . 1 1 3 Special Weapon 1 | . . 1 . Impact Weapon . | . . . . Slashing Weapon . | . . . . Piercing Weapon . | . . . . Special Melee Weapon . | . . . . Unidentified Prototypes . | . . . . Parts Lost 14 | . 4 . 10 Power 2 | . 2 . . Propulsion 5 | . . . 5 Utility 3 | . . . 3 Weapon 4 | . 2 . 2 Highest Loss Streak 5 | . 3 . 5 To Critical Strikes . | . . . . Average Backups 4 | 2 6 5 3 Power . | . . . . Propulsion 1 | 1 2 . . Utility 2 | . 2 4 1 Weapon . | . 1 . . Tool/Special . | . . . . Unused Backups 2 | . . . 2 Power . | . . . . Propulsion 1 | . . . 1 Utility 1 | . . . 1 Weapon . | . . . . Tool/Special . | . . . . Average Slot Usage (%) 79 | . 92 54 75 Engine 3 | . 11 . . Leg 5 | . 14 . . Wheel 8 | . 12 . 7 Hover 4 | . . . 8 Flight 3 | . . 28 1 Device 4 | . 14 . . Storage 4 | . 11 1 . Processor 5 | . . . 9 Protection 15 | . . . 27 Energy Gun 5 | . 14 5 . Ballistic Gun 5 | . . . 9 Launcher 10 | . 11 9 10 Special Weapon 1 | . . 11 . Peak Build Rating 14 | 6 9 9 14 Average Rating 9 | 3 7 8 12 On Entrance 4 | . 6 3 9 Avg Prop Armor Cover (%) 6 | 6 . . . Naked Turns . | . . . . Heaviest Build 29 | 8 29 7 11 Greatest Support 20 | 20 20 8 20 Greatest Overweight (x) 3 | . 1 . 3 Average Overweight (x) . | . . . . Largest Inventory Capacity 15 | 5 15 8 5 Average Capacity 7 | 5 13 5 5 Most Carried 9 | 5 9 6 5 Average Carried 4 | 2 6 4 3 Final Capacity 5 | 5 5 5 5 Final Carried 5 | 4 5 5 1 Class Distribution -------------------- 100% | Mutant Dominant Class ---------------- Mutant | -10/Materials Mutant | -10/Mines Mutant | -9/Materials Resources | -11 -10 -10 -9 ----------- Run | Yrd Mat Min Mat Matter Collected 939 | 342 272 62 263 Remotely . | . . . . Salvage Created 880 | 47 412 47 374 Parts 79 | 2 40 5 32 Haulers Intercepted 2 | . . . 2 Recyclers Shooed . | . . . . Parts Field Recycled . | . . . . Retrieved Matter . | . . . . Parts Self-Destructed . | . . . . Prevented . | . . . . Parts Restored . | . . . . Kills | -11 -10 -10 -9 ------- Run | Yrd Mat Min Mat Combat Hostiles Destroyed 35 | 1 15 1 18 Guns 13 | 1 10 . 2 AOE 22 | . 5 1 16 Classes Destroyed 10 | 1 5 1 3 Worker 1 | . . 1 . Builder 5 | . 3 1 1 Tunneler 2 | . 2 . . Hauler 2 | . . . 2 Recycler 1 | . 1 . . Operator 1 | . . . 1 Watcher 2 | . 1 . 1 Swarmer 16 | . 9 . 7 Grunt 18 | 1 6 1 10 Sentry 1 | . . . 1 Best Kill Streak 7 | 1 7 3 6 Combat Bots Only 6 | 1 4 1 6 Max Kills in Single Turn 5 | 1 5 2 2 Gunslinging . | . . . . Exploded 3 | . 3 1 1 Melee . | . . . . Uniques/NPCs Destroyed . | . . . . Combat | -11 -10 -10 -9 -------- Run | Yrd Mat Min Mat Hostile Shots Fired 212 | 2 106 7 97 Missed 65 | 1 30 1 33 Hits 147 | 1 76 6 64 Projectile 147 | 1 76 6 64 Critical Strikes 5 | . 1 . 4 Actively Blocked 1 | . . . 1 Damage Taken 1906 | 8 579 68 1251 Core 572 | 8 113 47 404 Absorbed by Shields . | . . . . Redirected to Shielding 29 | . . . 29 Ignored by Resistances 533 | 2 181 23 327 Core Remaining (%) 64 | 96 . 32 . Volleys Fired 90 | 4 36 5 45 Largest 2 | 2 2 2 2 Hottest 133 | 70 90 133 100 Shots Fired 140 | 8 51 6 75 Gun 85 | 8 40 . 37 Cannon . | . . . . Launcher 48 | . 11 2 35 Special 7 | . . 4 3 Kinetic 43 | 6 . . 37 Thermal 49 | 2 40 4 3 Explosive 48 | . 11 2 35 Electromagnetic . | . . . . Robot Hit Streak 16 | 5 16 9 11 Robot Miss Streak 3 | 1 3 . 2 Penetration Max . | . . . . Secondary Targets . | . . . . Shots Hit Robots 90 | 6 33 6 45 Core Hits 72 | 3 35 4 30 Critical Kills . | . . . . Critical Parts Destroyed . | . . . . Critical Strikes 6 | . 4 1 1 Burn 6 | . 4 1 1 Melee Attacks . | . . . . Impact . | . . . . Slashing . | . . . . Piercing . | . . . . Sneak Attacks . | . . . . Combat Hostiles . | . . . . Follow-up Attacks . | . . . . Damage Inflicted 3193 | 64 1070 257 1802 Guns 580 | 64 354 . 162 Cannons . | . . . . Explosions 2515 | . 716 205 1594 Melee . | . . . . Ramming 21 | . . . 21 Kinetic 200 | 38 . . 162 Thermal 457 | 26 354 52 25 Explosive 2515 | . 716 205 1594 Electromagnetic . | . . . . Impact . | . . . . Slashing . | . . . . Piercing . | . . . . Highest Corruption 3 | . . . 3 Average Corruption 3 | . . . 3 Corruption Purged . | . . . . Corruption Blocked . | . . . . Overload Shots . | . . . . Overflow Damage 189 | . 16 . 173 Projectiles . | . . . . Explosions 189 | . 16 . 173 Melee . | . . . . Knockbacks . | . . . . Impact . | . . . . Kinetic . | . . . . Secondary . | . . . . Self-Inflicted Damage 535 | . 44 12 479 Shots 24 | . 3 1 20 Rammed 7 | . . . 7 Targets Rammed 7 | . . . 7 Kicked . | . . . . Crushed . | . . . . Highest Temperature 244 | 24 147 244 99 Average Temperature 39 | 14 39 128 16 Received Heat Transfer 546 | 6 171 42 327 Siege Activations . | . . . . Martial Activations . | . . . . Shielding Activations . | . . . . Robots Disrupted . | . . . . Combat Hostiles . | . . . . Robots Corrupted . | . . . . Combat Hostiles . | . . . . Parts Fried . | . . . . Impact Corruptions . | . . . . Robots Melted 1 | . . . 1 Combat Hostiles . | . . . . Parts Melted 1 | . 1 . . Heat Transferred 2183 | 74 1309 480 320 Parts Sabotaged . | . . . . Parts Stolen . | . . . . Parts Stripped . | . . . . Power Chain Reactions . | . . . . Alert | -11 -10 -10 -9 ------- Run | Yrd Mat Min Mat Maximum Alert Level 1 | . 1 . 1 Low Security (%) 81 | 100 63 100 88 Level 1 18 | . 36 . 11 Level 2 . | . . . . Level 3 . | . . . . Level 4 . | . . . . Level 5 . | . . . . High Security . | . . . . Max Security . | . . . . Peak Influence 244 | 20 243 66 244 Initial 66 | . 5 66 18 Average 105 | 2 122 44 114 Influence Increases 1323 | 20 502 49 752 Destroy 0b10 Robot/C 700 | 20 300 20 360 Destroy 0b10 Robot/NC 70 | . 35 10 25 Destroy Leader 128 | . 62 . 66 Disable Machine 45 | . 9 . 36 Destroy Structure 230 | . 36 19 175 Lose Combat Pursuer 150 | . 60 . 90 Influence Decreases 1108 | 10 310 196 592 Entered New Map 178 | . 5 136 37 Time Decay 800 | 10 265 60 465 Lost Part 130 | . 40 . 90 Squads Dispatched 5 | . 2 . 3 Investigation 3 | . 2 . 1 Extermination . | . . . . Reinforcement 2 | . . . 2 Assault . | . . . . Garrison . | . . . . Intercept . | . . . . Searches Triggered . | . . . . Construction Impeded 2 | . . . 2 Haulers Reinforced . | . . . . Active Scanning Responses . | . . . . Cargo Convoy Interrupts . | . . . . Stealth | -11 -10 -10 -9 --------- Run | Yrd Mat Min Mat Distress Signals 2 | . . . 2 Communications Jammed . | . . . . Distress Signals . | . . . . Times Spotted 54 | 1 21 2 30 Peak Tracking Total 10 | 1 6 2 10 Tactical Retreats 5 | . 2 . 3 Traps | -11 -10 -10 -9 ------- Run | Yrd Mat Min Mat Traps Triggered 3 | . 1 . 2 Indirectly . | . . . . Trap Hack Attempts . | . . . . Triggered . | . . . . Disarmed 3 | . 3 . . Reprogrammed . | . . . . Reused . | . . . . Traps Extracted . | . . . . Installed . | . . . . Triggered . | . . . . Machines | -11 -10 -10 -9 ---------- Run | Yrd Mat Min Mat Machines Disabled 5 | . 1 . 4 Max in Single Turn 1 | . 1 . 1 Machines Repaired . | . . . . Machines Dismantled . | . . . . Machines Sabotaged . | . . . . Overloaded Fab Kills . | . . . . Hacking | -11 -10 -10 -9 --------- Run | Yrd Mat Min Mat Machines Accessed 5 | . 3 . 2 Terminals 4 | . 3 . 1 Fabricators . | . . . . Repair Stations . | . . . . Recycling Units . | . . . . Scanalyzers 1 | . . . 1 Garrison Access . | . . . . Total Hacks 21 | . 14 . 7 Successful 18 | . 11 . 7 Failed 3 | . 3 . . Catastrophic 1 | . 1 . . Database Lockouts . | . . . . Manual . | . . . . Terminals 18 | . 14 . 4 Fabricators . | . . . . Repair Stations . | . . . . Recycling Units . | . . . . Scanalyzers 3 | . . . 3 Garrison Access . | . . . . Terminal Hacks 15 | . 11 . 4 Record 7 | . 4 . 3 Prototype ID Bank 2 | . 2 . . Alert Level 3 | . 2 . 1 Locate Traps 1 | . 1 . . Disarm Traps 1 | . 1 . . Maintenance Status 1 | . 1 . . Fabricator Hacks . | . . . . Repair Station Hacks . | . . . . Recycling Unit Hacks . | . . . . Scanalyzer 3 | . . . 3 Insert Component 1 | . . . 1 Analyze 1 | . . . 1 Retrieve Study 1 | . . . 1 Garrison Access Hacks . | . . . . Unauthorized Hacks . | . . . . Terminals . | . . . . Fabricators . | . . . . Repair Stations . | . . . . Recycling Units . | . . . . Scanalyzers . | . . . . Garrison Access . | . . . . Data Cores Recovered . | . . . . Used . | . . . . Hacking Detections 5 | . 3 . 2 Full Trace Events 3 | . 2 . 1 Feedback Events . | . . . . Feedback Blocked . | . . . . Robot Schematics Acquired . | . . . . Robots Built . | . . . . Authchips . | . . . . Time . | . . . . Total Robot Build Rating . | . . . . Part Schematics Acquired 1 | . . . 1 Parts Built . | . . . . Authchips . | . . . . Time . | . . . . Total Part Build Rating . | . . . . Part Studies Acquired 1 | . . . 1 Parts Repaired . | . . . . Time . | . . . . Parts Recycled . | . . . . Recycled Matter . | . . . . Retrieved Matter . | . . . . Retrieved Components . | . . . . Parts Scanalyzed 1 | . . . 1 Part Schematics Acquired 1 | . . . 1 Parts Damaged . | . . . . Bothacking | -11 -10 -10 -9 ------------ Run | Yrd Mat Min Mat Used RIF Installer . | . . . . Robots Hacked . | . . . . Non-combat . | . . . . Combat . | . . . . Robot Hacks Applied . | . . . . Relay Couplers Released . | . . . . Fabnet Peak Effective % . | . . . . Robots Rewired . | . . . . Allies Hacked . | . . . . Hacks Repelled . | . . . . Allies | -11 -10 -10 -9 -------- Run | Yrd Mat Min Mat Total Allies . | . . . . Largest Group . | . . . . Highest-Rated Group . | . . . . Highest-Rated Ally . | . . . . Total Orders . | . . . . Ally Attacks . | . . . . Total Damage . | . . . . Kills . | . . . . Allies Corrupted . | . . . . Allies Melted . | . . . . Intel | -11 -10 -10 -9 ------- Run | Yrd Mat Min Mat Active Infowar (turns) 1379 | . 534 . 845 Sensors 452 | . 452 . . Terrain 78 | . 78 . . Seismic 27 | . 27 . . Machine Analysis 845 | . . . 845 Robot Analysis Total . | . . . . Derelict Logs Recovered 1 | . . 1 . Drone Launches . | . . . . Drone Recoveries . | . . . . Exploration | -11 -10 -10 -9 ------------- Run | Yrd Mat Min Mat Turns Passed 1861 | 106 610 130 1015 Spaces Moved 1616 | 85 408 292 831 Core 69 | 23 . . 46 Treads . | . . . . Legs 175 | 13 130 . 32 Wheels 585 | 49 219 . 317 Hover 333 | . . . 333 Flight 454 | . 59 292 103 Fastest Speed 37 | 50 37 37 37 Average Speed 74 | 78 114 37 68 Slowest Speed 200 | 120 190 37 200 Overloaded Moves . | . . . . Propulsion Burnouts . | . . . . Robots Hopped 4 | . 1 2 1 Potential Cave-ins 6 | . . . 6 Cave-ins Triggered 2 | . . . 2 Exploration Rate (%) 36 | 6 49 59 33 Regions Visited 3 Branch Regions 1 Pre-discovered Areas . | . . . . Known Exits Taken . | . . . . Unknown Exits Taken 3 | 1 1 1 . Scrap Searched 2 | . . 2 . Spaces Dug . | . . . . Terrain Destroyed 285 | . 30 23 232 Melee . | . . . . Projectile . | . . . . AOE 285 | . 30 23 232 Terrain Rammed . | . . . . Walls Destroyed . | . . . . Machines Disabled . | . . . . Actions | -11 -10 -10 -9 --------- Run | Yrd Mat Min Mat Total 2122 | 112 496 304 1210 Wait 305 | . 13 . 292 Move 1604 | 84 405 287 828 Hop 4 | . 1 2 1 Pick Up 30 | 10 10 3 7 Fast Attach 10 | . 1 1 8 Attach 15 | 6 5 1 3 Detach 6 | . 4 1 1 Swap 27 | 8 12 1 6 Drop 23 | . 9 3 11 Fire 90 | 4 36 5 45 Melee . | . . . . Ram 7 | . . . 7 Kick . | . . . . Crush . | . . . . Escape Stasis 1 | . . . 1 Rewire . | . . . . Trap . | . . . . Miscellaneous . | . . . . Route ------- -11/Scrapyard -10/Materials (discovered 2 exits: *Mat / [*Min]) -10/Mines -9/Materials History --------- Turn | Location | Event 2 | -11/Scrapyard | Met Revision 17 86 | -11/Scrapyard | Discovered new exit (range 8) 107 | -11/Scrapyard | Entered Materials 259 | -10/Materials | Discovered new exit (range 7) 301 | -10/Materials | Build established: Mutant 326 | -10/Materials | Discovered new exit (range 12) 701 | -10/Materials | Lost 3 parts (1p2w) 717 | -10/Materials | Entered Mines 727 | -10/Mines | Learned Materials emergency access door positions 729 | -10/Mines | A weapon hastily lodged in a ceiling crevice suddenly fell to the ground 746 | -10/Mines | Received a Rocket Launcher from a helpful Derelict 793 | -10/Mines | Discovered new exit (range 15) 822 | -10/Mines | Core integrity fell below 50% 847 | -10/Mines | Entered Materials 847 | -9/Materials | Evolved 2 slots: Utility x2 1844 | -9/Materials | Crushed by falling debris 1845 | -9/Materials | Core integrity fell below 50% 1855 | -9/Materials | Core integrity fell below 20% 1863 | -9/Materials | Crushed by falling debris 1863 | -9/Materials | Smashed by cave-in Last Messages --------------- Slammed into G-47 Trooper. The unstable cave ceiling collapses. Crushed by falling debris. [Achievement: Unlikely Earthworm] Core Shielding destroyed. System corrupted by crushing effect (+3). G-47 Trooper destroyed. G-34 Mercenary destroyed. Mni. Grenade Launcher destroyed. Destroyed Mni. Grenade Launcher. Acquired 10 matter. Destroyed Ion Engine. Destroyed Heat Sink. G-34 Mercenary destroyed. Acquired 22 matter. Acquired 44 matter. U-05 Engineer lays Concrete. The unstable cave ceiling collapses. Crushed by falling debris. [Achievement: First Step to Greatness] Map ----- +----------------------------------------------------+ | ???# """ # ????# """ #?????#####+######### | | ???# """ # ????# #????????# # # | | ???#!! #?????# ########## # "" # | | ???#!! """ #?????# + # ""S # | | ???# """ #?????# ########## + "" # | | ???# """ #?????# #????????# # # | | ???# #?????#####/############# # # | | #??#####+############ ######## | | ##????# #??????? | | #####?# #??????? | | ###### #??????? | | #########??????? | | =[ ""#????????????? | | """ """ T"#????????????? | | ###### """ """"" ""#????????????? | | ### ### """ ###????????????? | | ####### u ##?????????????? | | !### [! #?????????????? | | # ####+########### ####??????????? | | # * #??????# #??????????? | | # #???#### = #??????????? | | ! # !! #???# #??????????? | | !!#### !! #???# ### # ###??????????? | | ###### # !! #???#???# #???????????? | | ### # # #???????# #???????????? | | *## ########?????#?# @ #???????????? | | ####### ########## #?# ##??????????? | | [! [ #?# ##??????????? | | =###############+###### ##??????????? | | # # #?# #### ##??????????? | | ## # #?# #??# ##??????????? | | ##### ####?# #??## #####???????????? | | ????##?????# #???###########???????????? | | ???????????###########?????????????????????????? | | | | | | | | | | | | | | | | | | | | | | | | | | | | | | | | | +----------------------------------------------------+ Best States ------------- Heat Dissipation 28 Energy Generation 10 Energy Capacity 125 Matter Stores 300 Matter Capacity 300 Sight Range 16 Robot Scan Range 14 Terrain Scan Range 16 Terrain Scan Density 10 Armor Coverage 300 Resistance: KI 20 Resistance: TH 20 Resistance: EX 20 Resistance: EM 20 Resistance: I 20 Resistance: S 20 Resistance: P 20 Core Shielding 20 Evasion (%) 62 Offensive Hacking 10 Item Schematics ----------------- Imp. Terrain Scanner | -9/Materials | Scanalyzed Robot Schematics ------------------ None Fabricated ------------ Nothing Repaired ---------- Nothing Studied --------- Wheel | -9/Materials | Hacked Alien Tech Used ----------------- None Achievements -------------- Crack Shot DATA ERROR: Steam Global Achievement% First Step to Greatness For Emergencies Only I Have A Map? It's Just You Item+ Let's See Who's Tougher Loot Pinata One Hack Too Far Oops Organ Harvest Overwhelming Remodeling Resistances Are Futile That Tickles There's More Where That Came From Unlikely Earthworm Challenges ------------ None Game ------ Seed HackingHardenedReplica Manual? 0 Play Time 01:07:20 Cumulative 1.0 hours Start 2026.02.18 @ 23:22:04 End 2026.02.19 @ 00:33:08 Sessions 1 Manual Loads 0 Difficulty Adventurer Special Mode None Game No. 2 Rogue 0 Adventurer 2 Explorer 0 Win Type - Total 0 Types 0/0/0/0/0/0/0/0/0/0 Lore% 0 Gallery% 2 Achievement% 3 Wizard Run 0 Options --------- Layout 1 ASCII 0 Keyboard 0 Movement Mouse Keybinds 0 Fullscreen 0 Font 28/SmallcapsGlow Map View 50x35 Zoom Use 0% Tactical HUD 0 Map Filters NONE Filters NONE Steam 1 RUN: 543d1417-6a83-4b0e-95a5-eb479b6664de